Workbook

Sheet Utterslev Mose
A1: Vandområde | C1: Utterslev Mose | BB1: Vandområde | BD1: Damhusåen
A3: Udlednings nr. | C3: UM14 | D3: UM16 | E3: UM17b | F3: UM18 | G3: UM19b | H3: UM21 | I3: UM26 | BB3: Udlednings nr. | BD3: UD10b | BE3: UD10d | BF3: UD11b | BG3: UD12 | BH3: UD13 | BI3: UD14 | BJ3: UD15 | BK3: UD16 | BL3: UD17 | BM3: UD18 | BN3: UD19b | BO3: UD20b | BP3: UD21 | BQ3: UD21b | BR3: UD24 | BS3: Sum
A4: Adresse | C4: Ved Vigen | D4: Støvnæs Allé | E4: Folevadsvej | F4: Mosesvinget v. Andestien | G4: Hareskovvej | H4: Pilesvinget | I4: Ruten | J4: SUM | BB4: Adresse | BD4: Nødoverløb Damhusåens renseanlæg | BE4: Hovedoverløb Damhus-ledning | BF4: Åhaven | BG4: Sønderkær | BH4: Vigerslev Allé | BI4: Gårdstedet | BJ4: Heldbovej | BK4: Lykkebovej | BL4: Landlystvej | BM4: Skyttegårdsvej | BN4: Sandhusvej | BO4: Hvidovre station | BP4: Vigerslev-parken N for Dæmningen | BQ4: Nødoverløb ved Torpedo-bygværket | BR4: Roskildevej | BS4: -
A5: Kloakeringstype | B5: Status | C5: Fælles | D5: Fælles | E5: Fælles | F5: Fælles | G5: Fælles | H5: Fælles | I5: Fælles | J5: - | BB5: Kloakeringstype | BC5: Status | BD5: Fælles | BE5: Fælles | BF5: Fælles | BG5: Fælles | BH5: Fælles | BI5: Fælles | BJ5: Fælles | BK5: Fælles | BL5: Fælles | BM5: Fælles | BN5: Fælles | BO5: Fælles | BP5: Fælles | BQ5: Fælles | BR5: Fælles | BS5: -
B6: Plan | C6: Fælles | D6: Fælles | E6: Fælles | F6: Fælles | G6: Fælles | H6: Fælles | I6: Fælles | J6: - | BC6: Plan | BD6: Fælles | BE6: Fælles | BF6: Fælles | BG6: Fælles | BH6: Fælles | BI6: Fælles | BJ6: Fælles | BK6: Fælles | BL6: Fælles | BM6: Fælles | BN6: Fælles | BO6: Fælles | BP6: Fælles | BQ6: Fælles | BR6: Fælles | BS6: -
B7: Strategi | C7: Fælles | D7: Fælles | E7: Fælles | F7: Fælles | G7: Fælles | H7: Fælles | I7: Fælles | J7: - | BC7: Strategi | BD7: Fælles | BE7: Fælles | BF7: Fælles | BG7: Fælles | BH7: Fælles | BI7: Fælles | BJ7: Fælles | BK7: Fælles | BL7: Fælles | BM7: Fælles | BN7: Fælles | BO7: Fælles | BP7: Fælles | BQ7: Fælles | BR7: Fælles | BS7: -
A8: Reduceret areal ha | B8: Status | C8: 19.585799 | D8: 13.306354 | E8: 56.510713 | F8: 7.287994 | G8: 8.069741 | H8: 41.51887 | I8: 13.948493 | J8: =SUM(Tabel19[[#This Row],[Ved Vigen]:[Ruten]]) -> 160.227964 | BB8: Reduceret areal ha | BC8: Status | BD8: 62.09627 | BE8: 0 | BF8: 4.926299 | BG8: 13.292068 | BH8: 9.063189 | BI8: 1.454076 | BJ8: 1.523395 | BK8: 3.503314 | BL8: 1.93898 | BM8: 4.850912 | BN8: 2.3 | BO8: 1.07056 | BP8: 284.5 | BQ8: 0 | BR8: 0 | BS8: =SUM(BD8:BR8) -> 390.519063
B9: Plan | C9: 19.585799 | D9: 13.306354 | E9: 56.510713 | F9: 7.287994 | G9: 8.069741 | H9: 41.51887 | I9: 13.948493 | J9: =SUM(Tabel19[[#This Row],[Ved Vigen]:[Ruten]]) -> 160.227964 | BC9: Plan | BD9: 62.09627 | BE9: 0 | BF9: 4.926299 | BG9: 13.292068 | BH9: 9.063189 | BI9: 1.454076 | BJ9: 1.523395 | BK9: 3.503314 | BL9: 1.93898 | BM9: 4.850912 | BN9: 2.3 | BO9: 1.07056 | BP9: 284.5 | BQ9: 0 | BR9: 0 | BS9: 390.519063
B10: Strategi | C10: 19.585799 | D10: 13.306354 | E10: 56.510713 | F10: 7.287994 | G10: 8.069741 | H10: 41.51887 | I10: 13.948493 | J10: =SUM(Tabel19[[#This Row],[Ved Vigen]:[Ruten]]) -> 160.227964 | BC10: Strategi | BD10: 62.09627 | BE10: 0 | BF10: 4.926299 | BG10: 13.292068 | BH10: 9.063189 | BI10: 1.454076 | BJ10: 1.523395 | BK10: 3.503314 | BL10: 1.93898 | BM10: 4.850912 | BN10: 2.3 | BO10: 1.07056 | BP10: 284.5 | BQ10: 0 | BR10: 0 | BS10: 390.519063
A11: Maks udledning l/s | B11: Status | C11: 1180 | D11: 200 | E11: 2500 | F11: 1000 | G11: 700 | H11: 2000 | I11: 300 | J11: =SUM(Tabel19[[#This Row],[Ved Vigen]:[Ruten]]) -> 7880 | BB11: Maks udledning l/s | BC11: Status | BD11: 5000 | BE11: 5000 | BF11: 700 | BG11: 3000 | BH11: 1200 | BI11: 500 | BJ11: 100 | BK11: 300 | BL11: 300 | BM11: 500 | BN11: 500 | BO11: 200 | BP11: 1500 | BQ11: 0 | BR11: 1000 | BS11: 19800
B12: Plan | C12: 1180 | D12: 200 | E12: 2500 | F12: 1000 | G12: 700 | H12: 2000 | I12: 300 | J12: =SUM(Tabel19[[#This Row],[Ved Vigen]:[Ruten]]) -> 7880 | BC12: Plan | BD12: 5000 | BE12: 5000 | BF12: 700 | BG12: 3000 | BH12: 1200 | BI12: 500 | BJ12: 100 | BK12: 300 | BL12: 300 | BM12: 500 | BN12: 500 | BO12: 200 | BP12: 1500 | BQ12: 0 | BR12: 1000 | BS12: 19800
B13: Strategi | C13: 1180 | D13: 200 | E13: 2500 | F13: 1000 | G13: 700 | H13: 2000 | I13: 300 | J13: =SUM(Tabel19[[#This Row],[Ved Vigen]:[Ruten]]) -> 7880 | BC13: Strategi | BD13: 5000 | BE13: 5000 | BF13: 700 | BG13: 3000 | BH13: 1200 | BI13: 500 | BJ13: 100 | BK13: 300 | BL13: 300 | BM13: 500 | BN13: 500 | BO13: 200 | BP13: 1500 | BQ13: 0 | BR13: 1000 | BS13: 19800
A14: Overløbshyppighed antal/år | B14: Status | C14: 1 | D14: 1 | E14: 1 | F14: 1 | G14: 0.5 | H14: 1 | I14: 6 | J14: =SUM(Tabel19[[#This Row],[Ved Vigen]:[Ruten]]) -> 11.5 | BB14: Overløbshyppighed antal/år | BC14: Status | BD14: 2 | BE14: 1 | BF14: 0.5 | BG14: 0.1 | BH14: 0.1 | BI14: 0.1 | BJ14: 0.1 | BK14: 0.1 | BL14: 0.25 | BM14: 0.3 | BN14: 0.1 | BO14: 0.1 | BP14: 0.2 | BQ14: 0 | BR14: 13 | BS14: -
B15: Plan | C15: 1 | D15: 1 | E15: 1 | F15: 1 | G15: 0.5 | H15: 1 | I15: 1 | J15: =SUM(Tabel19[[#This Row],[Ved Vigen]:[Ruten]]) -> 6.5 | BC15: Plan | BD15: 2 | BE15: 1 | BF15: 0.5 | BG15: 0.1 | BH15: 0.1 | BI15: 0.1 | BJ15: 0.1 | BK15: 0.1 | BL15: 0.25 | BM15: 0.3 | BN15: 0.1 | BO15: 0.1 | BP15: 0.2 | BQ15: 0 | BR15: 13 | BS15: -
B16: Strategi | C16: 0.5 | D16: 0.5 | E16: 0.5 | F16: 1 | G16: 0.25 | H16: 0.1 | I16: 0.1 | J16: =SUM(Tabel19[[#This Row],[Ved Vigen]:[Ruten]]) -> 2.95 | BC16: Strategi | BD16: 1 | BE16: 0.1 | BF16: 0.05 | BG16: 0.01 | BH16: 0.01 | BI16: 0.01 | BJ16: 0.01 | BK16: 0.01 | BL16: 0.025 | BM16: 0.03 | BN16: 0.01 | BO16: 0.01 | BP16: 0.02 | BQ16: 0 | BR16: 10 | BS16: -
A17: Vand m3/år | B17: Status | C17: 1000 | D17: 1000 | E17: 1000 | F17: 1000 | G17: 500 | H17: 1000 | I17: 10000 | J17: =SUM(Tabel19[[#This Row],[Ved Vigen]:[Ruten]]) -> 15500 | BB17: Vand m3/år | BC17: Status | BD17: 3408 | BE17: 15000 | BF17: 500 | BG17: 1000 | BH17: 100 | BI17: 100 | BJ17: 100 | BK17: 100 | BL17: 500 | BM17: 100 | BN17: 100 | BO17: 100 | BP17: 500 | BQ17: 0 | BR17: 8734 | BS17: =SUM(BD17:BR17) -> 30342
B18: Plan | C18: 1000 | D18: 1000 | E18: 1000 | F18: 1000 | G18: 500 | H18: 1000 | I18: 1666.666667 | J18: =SUM(Tabel19[[#This Row],[Ved Vigen]:[Ruten]]) -> 7166.666667 | BC18: Plan | BD18: 3408 | BE18: 15000 | BF18: 500 | BG18: 1000 | BH18: 100 | BI18: 100 | BJ18: 100 | BK18: 100 | BL18: 500 | BM18: 100 | BN18: 100 | BO18: 100 | BP18: 500 | BQ18: 0 | BR18: 8734 | BS18: 30342
B19: Strategi | C19: 166.6666667 | D19: 500 | E19: 200 | F19: 900 | G19: 250 | H19: 100 | I19: 500 | J19: =SUM(Tabel19[[#This Row],[Ved Vigen]:[Ruten]]) -> 2616.666667 | BC19: Strategi | BD19: 1704 | BE19: 1500 | BF19: 50 | BG19: 100 | BH19: 10 | BI19: 10 | BJ19: 10 | BK19: 10 | BL19: 50 | BM19: 10 | BN19: 10 | BO19: 10 | BP19: 50 | BQ19: 0 | BR19: 780 | BS19: 4304
A20: COD kg/år | B20: Status | C20: 50 | D20: 50 | E20: 50 | F20: 50 | G20: 25 | H20: 50 | I20: 500 | J20: =SUM(Tabel19[[#This Row],[Ved Vigen]:[Ruten]]) -> 775 | BB20: COD kg/år | BC20: Status | BD20: 170 | BE20: 750 | BF20: 25 | BG20: 50 | BH20: 5 | BI20: 5 | BJ20: 5 | BK20: 5 | BL20: 25 | BM20: 5 | BN20: 5 | BO20: 5 | BP20: 25 | BQ20: 0 | BR20: 437 | BS20: 1517
B21: Plan | C21: 50 | D21: 50 | E21: 50 | F21: 50 | G21: 25 | H21: 50 | I21: 83.33333333 | J21: =SUM(Tabel19[[#This Row],[Ved Vigen]:[Ruten]]) -> 358.3333333 | BC21: Plan | BD21: 170 | BE21: 750 | BF21: 25 | BG21: 50 | BH21: 5 | BI21: 5 | BJ21: 5 | BK21: 5 | BL21: 25 | BM21: 5 | BN21: 5 | BO21: 5 | BP21: 25 | BQ21: 0 | BR21: 437 | BS21: 1517
B22: Strategi | C22: 8.333333333 | D22: 25 | E22: 10 | F22: 45 | G22: 12.5 | H22: 5 | I22: 25 | J22: =SUM(Tabel19[[#This Row],[Ved Vigen]:[Ruten]]) -> 130.8333333 | BC22: Strategi | BD22: 85 | BE22: 75 | BF22: 2 | BG22: 5.9 | BH22: 0.5 | BI22: 0.5 | BJ22: 0.5 | BK22: 0.5 | BL22: 2.5 | BM22: 0.5 | BN22: 0.5 | BO22: 0.5 | BP22: 2.5 | BQ22: 0 | BR22: 39 | BS22: 215.4
A23: Total N kg/år | B23: Status | C23: 2 | D23: 2 | E23: 2 | F23: 2 | G23: 1 | H23: 2 | I23: 20 | J23: =SUM(Tabel19[[#This Row],[Ved Vigen]:[Ruten]]) -> 31 | BB23: Total N kg/år | BC23: Status | BD23: 6.8 | BE23: 30 | BF23: 1 | BG23: 2 | BH23: 0.2 | BI23: 0.2 | BJ23: 0.2 | BK23: 0.2 | BL23: 1 | BM23: 0.2 | BN23: 0.2 | BO23: 0.2 | BP23: 1 | BQ23: 0 | BR23: 17.5 | BS23: 60.7
B24: Plan | C24: 2 | D24: 2 | E24: 2 | F24: 2 | G24: 1 | H24: 2 | I24: 3.333333333 | J24: =SUM(Tabel19[[#This Row],[Ved Vigen]:[Ruten]]) -> 14.33333333 | BC24: Plan | BD24: 6.8 | BE24: 30 | BF24: 1 | BG24: 2 | BH24: 0.2 | BI24: 0.2 | BJ24: 0.2 | BK24: 0.2 | BL24: 1 | BM24: 0.2 | BN24: 0.2 | BO24: 0.2 | BP24: 1 | BQ24: 0 | BR24: 17.5 | BS24: 60.7
B25: Strategi | C25: 0.3333333333 | D25: 1 | E25: 0.4 | F25: 1.8 | G25: 0.5 | H25: 0.2 | I25: 1 | J25: =SUM(Tabel19[[#This Row],[Ved Vigen]:[Ruten]]) -> 5.233333333 | BC25: Strategi | BD25: 3.4 | BE25: 3 | BF25: 0.08 | BG25: 0.2 | BH25: 0.02 | BI25: 0.02 | BJ25: 0.02 | BK25: 0.02 | BL25: 0.1 | BM25: 0.02 | BN25: 0.02 | BO25: 0.02 | BP25: 0.1 | BQ25: 0 | BR25: 1.6 | BS25: 8.62
A26: Total P kg/år | B26: Status | C26: 0.5 | D26: 0.5 | E26: 0.5 | F26: 0.5 | G26: 0.25 | H26: 0.5 | I26: 5 | J26: =SUM(Tabel19[[#This Row],[Ved Vigen]:[Ruten]]) -> 7.75 | BB26: Total P kg/år | BC26: Status | BD26: 1.7 | BE26: 7.5 | BF26: 0.25 | BG26: 0.5 | BH26: 0.05 | BI26: 0.05 | BJ26: 0.05 | BK26: 0.05 | BL26: 0.25 | BM26: 0.05 | BN26: 0.05 | BO26: 0.05 | BP26: 0.25 | BQ26: 0 | BR26: 4.4 | BS26: 15.2
B27: Plan | C27: 0.5 | D27: 0.5 | E27: 0.5 | F27: 0.5 | G27: 0.25 | H27: 0.5 | I27: 0.8333333333 | J27: =SUM(Tabel19[[#This Row],[Ved Vigen]:[Ruten]]) -> 3.583333333 | BC27: Plan | BD27: 1.7 | BE27: 7.5 | BF27: 0.25 | BG27: 0.5 | BH27: 0.05 | BI27: 0.05 | BJ27: 0.05 | BK27: 0.05 | BL27: 0.25 | BM27: 0.05 | BN27: 0.05 | BO27: 0.05 | BP27: 0.25 | BQ27: 0 | BR27: 4.4 | BS27: 15.2
B28: Strategi | C28: 0.08333333333 | D28: 0.25 | E28: 0.1 | F28: 0.45 | G28: 0.125 | H28: 0.05 | I28: 0.25 | J28: =SUM(Tabel19[[#This Row],[Ved Vigen]:[Ruten]]) -> 1.308333333 | BC28: Strategi | BD28: 0.8 | BE28: 0.75 | BF28: 0.02 | BG28: 0.06 | BH28: 0.005 | BI28: 0.005 | BJ28: 0.005 | BK28: 0.005 | BL28: 0.025 | BM28: 0.005 | BN28: 0.005 | BO28: 0.005 | BP28: 0.025 | BQ28: 0 | BR28: 0.4 | BS28: =SUM(BD28:BR28) -> 2.115
